[Event "Late-Titled-Tuesday-Blitz-February-13-2024"]
[Site "Chess.com"]
[Date "2024.02.13"]
[Round "5"]
[White "Cristi_Coca"]
[Black "jinxy2009"]
[Result "0-1"]
[WhiteElo "2370"]
[BlackElo "2244"]
[TimeControl "180+1"]
[EndTime "14:56:40 PST"]
[Termination "jinxy2009 won by resignation"]

1. e4 {[%clk 0:03:00.9]} 1... c5 {[%clk 0:02:55.1]} 2. c3 {[%clk 0:03:01]} 2...
Nf6 {[%clk 0:02:54.3]} 3. e5 {[%clk 0:03:00.8]} 3... Nd5 {[%clk 0:02:54.6]} 4.
Nf3 {[%clk 0:03:00.9]} 4... Nc6 {[%clk 0:02:54.1]} 5. Bc4 {[%clk 0:03:00.9]}
5... Nb6 {[%clk 0:02:53.1]} 6. Bb3 {[%clk 0:03:01.5]} 6... d5 {[%clk 0:02:52.4]}
7. exd6 {[%clk 0:03:02.1]} 7... Qxd6 {[%clk 0:02:52.6]} 8. O-O {[%clk
0:03:02.6]} 8... Be6 {[%clk 0:02:52.3]} 9. Bxe6 {[%clk 0:03:00.8]} 9... Qxe6
{[%clk 0:02:53.2]} 10. d4 {[%clk 0:03:01.4]} 10... cxd4 {[%clk 0:02:53]} 11.
Nxd4 {[%clk 0:03:02.3]} 11... Nxd4 {[%clk 0:02:53.2]} 12. Qxd4 {[%clk
0:03:03.2]} 12... Rd8 {[%clk 0:02:53.1]} 13. Qf4 {[%clk 0:02:57.4]} 13... h5
{[%clk 0:02:17.1]} 14. Nd2 {[%clk 0:02:53.1]} 14... g6 {[%clk 0:02:02.9]} 15.
Nf3 {[%clk 0:02:49.6]} 15... Bh6 {[%clk 0:02:01.9]} 16. Qc7 {[%clk 0:02:49.4]}
16... Qd7 {[%clk 0:01:42]} 17. Qxd7+ {[%clk 0:02:46.5]} 17... Rxd7 {[%clk
0:01:40.4]} 18. Bxh6 {[%clk 0:02:47.1]} 18... Rxh6 {[%clk 0:01:41]} 19. Rad1
{[%clk 0:02:46.9]} 19... h4 {[%clk 0:01:36.7]} 20. Rxd7 {[%clk 0:02:45]} 20...
Kxd7 {[%clk 0:01:36.2]} 21. Rd1+ {[%clk 0:02:45.5]} 21... Ke8 {[%clk 0:01:35.9]}
22. h3 {[%clk 0:02:45.5]} 22... Rh5 {[%clk 0:01:35.2]} 23. Rd4 {[%clk
0:02:44.2]} 23... Rb5 {[%clk 0:01:26.4]} 24. b3 {[%clk 0:02:42.4]} 24... g5
{[%clk 0:01:18]} 25. a4 {[%clk 0:02:37.8]} 25... Rc5 {[%clk 0:01:08.7]} 26. c4
{[%clk 0:02:34.5]} 26... f6 {[%clk 0:01:08.1]} 27. Kf1 {[%clk 0:02:30.8]} 27...
e5 {[%clk 0:01:02.5]} 28. Rd6 {[%clk 0:02:29.1]} 28... Ke7 {[%clk 0:01:02.3]}
29. Rd1 {[%clk 0:02:25.1]} 29... Nd7 {[%clk 0:00:58.1]} 30. Ke2 {[%clk
0:02:24.1]} 30... Rc6 {[%clk 0:00:57.9]} 31. Rd5 {[%clk 0:02:09.6]} 31... Nc5
{[%clk 0:00:53.7]} 32. Nd2 {[%clk 0:02:09.5]} 32... b6 {[%clk 0:00:47.9]} 33.
Kd1 {[%clk 0:01:58.2]} 33... Ne6 {[%clk 0:00:42.8]} 34. g3 {[%clk 0:01:46.3]}
34... hxg3 {[%clk 0:00:38]} 35. fxg3 {[%clk 0:01:47.2]} 35... Nd4 {[%clk
0:00:37.7]} 36. g4 {[%clk 0:01:37]} 36... Ne6 {[%clk 0:00:29.2]} 37. Rd3 {[%clk
0:01:30.5]} 37... Nf4 {[%clk 0:00:28.8]} 38. Rf3 {[%clk 0:01:29.9]} 38... Ke6
{[%clk 0:00:21.5]} 39. Kc2 {[%clk 0:01:29.9]} 39... Rc8 {[%clk 0:00:19.3]} 40.
a5 {[%clk 0:01:13.8]} 40... Rh8 {[%clk 0:00:17.4]} 41. axb6 {[%clk 0:01:09.1]}
41... axb6 {[%clk 0:00:17.2]} 42. Ne4 {[%clk 0:01:05.4]} 42... Rxh3 {[%clk
0:00:12.5]} 43. Rxh3 {[%clk 0:01:05.4]} 43... Nxh3 {[%clk 0:00:13.4]} 44. Kc3
{[%clk 0:01:05.5]} 44... Nf4 {[%clk 0:00:12.3]} 45. Kb4 {[%clk 0:01:05.6]} 45...
f5 {[%clk 0:00:11.9]} 46. Nxg5+ {[%clk 0:01:04.7]} 46... Kf6 {[%clk 0:00:11.2]}
47. Nh7+ {[%clk 0:00:56.6]} 47... Kg7 {[%clk 0:00:11.2]} 48. Ng5 {[%clk
0:00:54.5]} 48... fxg4 {[%clk 0:00:11.6]} 49. Ne4 {[%clk 0:00:48.5]} 49... Ne2
{[%clk 0:00:09]} 50. c5 {[%clk 0:00:45.9]} 50... bxc5+ {[%clk 0:00:08.2]} 51.
Kxc5 {[%clk 0:00:46.8]} 51... g3 {[%clk 0:00:08.4]} 52. Ng5 {[%clk 0:00:24.1]}
52... g2 {[%clk 0:00:06.2]} 53. Nh3 {[%clk 0:00:22.8]} 53... g1=Q+ {[%clk
0:00:04.7]} 54. Nxg1 {[%clk 0:00:22.4]} 54... Nxg1 {[%clk 0:00:05.6]} 55. Kd5
{[%clk 0:00:22.4]} 55... Kf6 {[%clk 0:00:05.9]} 56. b4 {[%clk 0:00:21.2]} 56...
Ne2 {[%clk 0:00:04]} 57. Kc4 {[%clk 0:00:10.7]} 57... Nd4 {[%clk 0:00:04.1]} 58.
b5 {[%clk 0:00:10.4]} 58... Nxb5 {[%clk 0:00:03.8]} 59. Kxb5 {[%clk 0:00:11.3]}
59... Kf5 {[%clk 0:00:04]} 0-1

[Event "Late-Titled-Tuesday-Blitz-February-13-2024"]
[Site "Chess.com"]
[Date "2024.02.13"]
[Round "5"]
[White "ajeale2"]
[Black "Mops_2004"]
[Result "0-1"]
[WhiteElo "2514"]
[BlackElo "2763"]
[TimeControl "180+1"]
[EndTime "14:56:42 PST"]
[Termination "Mops_2004 won on time"]

1. d4 {[%clk 0:03:00.9]} 1... f5 {[%clk 0:02:59.5]} 2. c4 {[%clk 0:02:58.9]}
2... Nf6 {[%clk 0:02:59.6]} 3. Nc3 {[%clk 0:02:59.5]} 3... g6 {[%clk 0:02:59.7]}
4. h3 {[%clk 0:02:54.8]} 4... d6 {[%clk 0:02:57]} 5. Nf3 {[%clk 0:02:53]} 5...
Bg7 {[%clk 0:02:56.8]} 6. e3 {[%clk 0:02:51.5]} 6... O-O {[%clk 0:02:52.2]} 7.
Bd3 {[%clk 0:02:51.7]} 7... Nc6 {[%clk 0:02:51.5]} 8. d5 {[%clk 0:02:36.6]} 8...
Nb4 {[%clk 0:02:46.8]} 9. Bb1 {[%clk 0:02:30.3]} 9... e5 {[%clk 0:02:44.8]} 10.
dxe6 {[%clk 0:02:27.1]} 10... Bxe6 {[%clk 0:02:44.6]} 11. a3 {[%clk 0:02:25.5]}
11... Nc6 {[%clk 0:02:39.4]} 12. Qe2 {[%clk 0:01:58.7]} 12... Ne5 {[%clk
0:02:34.9]} 13. Nxe5 {[%clk 0:01:48.8]} 13... dxe5 {[%clk 0:02:35.1]} 14. O-O
{[%clk 0:01:49.4]} 14... e4 {[%clk 0:02:34.7]} 15. b3 {[%clk 0:01:41.2]} 15...
c6 {[%clk 0:02:31]} 16. Bb2 {[%clk 0:01:38.6]} 16... a5 {[%clk 0:02:14.5]} 17.
Bc2 {[%clk 0:01:35.9]} 17... Nd7 {[%clk 0:02:13]} 18. Rfd1 {[%clk 0:01:34.9]}
18... Qe7 {[%clk 0:02:12.9]} 19. Rd2 {[%clk 0:01:24.5]} 19... Nb6 {[%clk
0:02:09.7]} 20. a4 {[%clk 0:01:18.7]} 20... Qb4 {[%clk 0:02:04.3]} 21. Na2
{[%clk 0:01:12.4]} 21... Qe7 {[%clk 0:01:55.5]} 22. Bxg7 {[%clk 0:01:12.3]}
22... Kxg7 {[%clk 0:01:51.9]} 23. Rad1 {[%clk 0:01:09.8]} 23... Rfd8 {[%clk
0:01:44.9]} 24. Rxd8 {[%clk 0:01:07.9]} 24... Rxd8 {[%clk 0:01:44.4]} 25. Qe1
{[%clk 0:01:07.9]} 25... Rxd1 {[%clk 0:01:36]} 26. Qxd1 {[%clk 0:01:06.8]} 26...
Nd7 {[%clk 0:01:34.5]} 27. Qd4+ {[%clk 0:00:44.5]} 27... Kf7 {[%clk 0:01:34.5]}
28. Nc3 {[%clk 0:00:41.6]} 28... Qa3 {[%clk 0:01:25.5]} 29. Kf1 {[%clk 0:00:32]}
29... Qc1+ {[%clk 0:01:22]} 30. Qd1 {[%clk 0:00:29.4]} 30... Qxd1+ {[%clk
0:01:09.6]} 31. Nxd1 {[%clk 0:00:26.6]} 31... Ke7 {[%clk 0:01:08.1]} 32. Ke2
{[%clk 0:00:26.7]} 32... Kd6 {[%clk 0:00:50]} 33. Kd2 {[%clk 0:00:26.4]} 33...
Kc5 {[%clk 0:00:50.3]} 34. Kc3 {[%clk 0:00:27]} 34... Nf6 {[%clk 0:00:32.3]} 35.
f3 {[%clk 0:00:24]} 35... exf3 {[%clk 0:00:29.6]} 36. gxf3 {[%clk 0:00:24.3]}
36... f4 {[%clk 0:00:30]} 37. e4 {[%clk 0:00:18.2]} 37... Bxh3 {[%clk
0:00:28.6]} 38. Nf2 {[%clk 0:00:18.7]} 38... Bf1 {[%clk 0:00:21.9]} 39. Bd3
{[%clk 0:00:14.9]} 39... Bg2 {[%clk 0:00:21.8]} 40. Be2 {[%clk 0:00:15.6]} 40...
Nh5 {[%clk 0:00:15.9]} 41. Nd3+ {[%clk 0:00:15.1]} 41... Kd6 {[%clk 0:00:16.5]}
42. c5+ {[%clk 0:00:15.2]} 42... Ke6 {[%clk 0:00:15.7]} 43. b4 {[%clk
0:00:15.9]} 43... axb4+ {[%clk 0:00:15.5]} 44. Kxb4 {[%clk 0:00:13.3]} 44... g5
{[%clk 0:00:15.6]} 45. Ka5 {[%clk 0:00:06.6]} 45... Ng3 {[%clk 0:00:15.8]} 46.
Bd1 {[%clk 0:00:06.5]} 46... Bf1 {[%clk 0:00:15.9]} 47. Bb3+ {[%clk 0:00:03.3]}
47... Kf6 {[%clk 0:00:15.4]} 48. Bc4 {[%clk 0:00:03.9]} 48... h5 {[%clk
0:00:12.9]} 49. Kb6 {[%clk 0:00:03.7]} 49... h4 {[%clk 0:00:13.5]} 50. a5 {[%clk
0:00:02.6]} 50... Bxd3 {[%clk 0:00:12.5]} 51. Bxd3 {[%clk 0:00:02.5]} 51... h3
{[%clk 0:00:13.4]} 52. e5+ {[%clk 0:00:03]} 52... Kxe5 {[%clk 0:00:13]} 53. Kxb7
{[%clk 0:00:03.9]} 53... h2 {[%clk 0:00:13]} 54. a6 {[%clk 0:00:04.8]} 54...
h1=Q {[%clk 0:00:13.2]} 55. a7 {[%clk 0:00:05.7]} 55... Qxf3 {[%clk 0:00:10.2]}
56. Ba6 {[%clk 0:00:02.2]} 56... Qb3+ {[%clk 0:00:08.4]} 57. Kc7 {[%clk
0:00:01.5]} 57... Qf7+ {[%clk 0:00:08]} 0-1

[Event "Late-Titled-Tuesday-Blitz-February-13-2024"]
[Site "Chess.com"]
[Date "2024.02.13"]
[Round "5"]
[White "bocah_sakit"]
[Black "Cosi43"]
[Result "1-0"]
[WhiteElo "2474"]
[BlackElo "2603"]
[TimeControl "180+1"]
[EndTime "14:56:42 PST"]
[Termination "bocah_sakit won on time"]

1. e4 {[%clk 0:03:00.9]} 1... c5 {[%clk 0:02:59.4]} 2. Nf3 {[%clk 0:03:00.1]}
2... e6 {[%clk 0:03:00]} 3. Nc3 {[%clk 0:02:59.3]} 3... Nc6 {[%clk 0:02:59.9]}
4. Bb5 {[%clk 0:02:58.5]} 4... Nge7 {[%clk 0:02:58.5]} 5. O-O {[%clk 0:02:58.2]}
5... a6 {[%clk 0:02:58.8]} 6. Bxc6 {[%clk 0:02:57.6]} 6... Nxc6 {[%clk
0:02:59.7]} 7. d4 {[%clk 0:02:57.4]} 7... cxd4 {[%clk 0:03:00.6]} 8. Nxd4 {[%clk
0:02:58.2]} 8... Qc7 {[%clk 0:02:57.1]} 9. Re1 {[%clk 0:02:56.9]} 9... d6 {[%clk
0:02:48]} 10. Nxc6 {[%clk 0:02:51.1]} 10... bxc6 {[%clk 0:02:47.4]} 11. Na4
{[%clk 0:02:50.8]} 11... Be7 {[%clk 0:02:41.2]} 12. c4 {[%clk 0:02:48.8]} 12...
O-O {[%clk 0:02:41.1]} 13. b3 {[%clk 0:02:44.6]} 13... Bb7 {[%clk 0:02:09.8]}
14. Bb2 {[%clk 0:02:36.8]} 14... Rfe8 {[%clk 0:01:57.1]} 15. Qg4 {[%clk
0:02:32.4]} 15... Bf8 {[%clk 0:01:57]} 16. c5 {[%clk 0:02:30.7]} 16... d5 {[%clk
0:01:50]} 17. e5 {[%clk 0:02:13.6]} 17... a5 {[%clk 0:01:48.2]} 18. Bd4 {[%clk
0:02:11.8]} 18... Ba6 {[%clk 0:01:47.1]} 19. Re3 {[%clk 0:02:10.2]} 19... Rab8
{[%clk 0:01:42.8]} 20. h4 {[%clk 0:02:05.8]} 20... Rb4 {[%clk 0:01:37.4]} 21. a3
{[%clk 0:02:05.6]} 21... Rb5 {[%clk 0:01:32]} 22. h5 {[%clk 0:02:04.3]} 22...
Reb8 {[%clk 0:01:28.1]} 23. Rb1 {[%clk 0:02:01.5]} 23... R5b7 {[%clk 0:01:16.2]}
24. f4 {[%clk 0:01:54]} 24... Qd8 {[%clk 0:00:49.2]} 25. f5 {[%clk 0:01:47.5]}
25... exf5 {[%clk 0:00:48.5]} 26. Qxf5 {[%clk 0:01:48.4]} 26... Re7 {[%clk
0:00:46.9]} 27. Rf3 {[%clk 0:01:40.7]} 27... Bc8 {[%clk 0:00:46.3]} 28. Qf4
{[%clk 0:01:34.5]} 28... Be6 {[%clk 0:00:44.3]} 29. Nb6 {[%clk 0:01:34.4]} 29...
Reb7 {[%clk 0:00:37.3]} 30. Rc1 {[%clk 0:01:20.7]} 30... Be7 {[%clk 0:00:26]}
31. Rcc3 {[%clk 0:00:42.2]} 31... h6 {[%clk 0:00:26]} 32. Rg3 {[%clk 0:00:34.8]}
32... Kh8 {[%clk 0:00:19.5]} 33. Be3 {[%clk 0:00:28.3]} 33... Qf8 {[%clk
0:00:19.2]} 34. Qd4 {[%clk 0:00:26.4]} 34... Rd8 {[%clk 0:00:10.8]} 35. Kh2
{[%clk 0:00:23.5]} 35... Rdb8 {[%clk 0:00:11.1]} 36. Qa4 {[%clk 0:00:21.5]}
36... Rc7 {[%clk 0:00:06.9]} 37. Qxa5 {[%clk 0:00:21.2]} 37... Rbb7 {[%clk
0:00:07.1]} 38. Qb4 {[%clk 0:00:19.8]} 38... Ra7 {[%clk 0:00:04.3]} 39. a4
{[%clk 0:00:20]} 39... Rcb7 {[%clk 0:00:04.7]} 40. Qd4 {[%clk 0:00:20]} 40...
Ra6 {[%clk 0:00:03.8]} 41. Qd2 {[%clk 0:00:16]} 41... Raa7 {[%clk 0:00:04.4]}
42. Rf3 {[%clk 0:00:12.5]} 42... Bg4 {[%clk 0:00:03.2]} 43. Rf2 {[%clk
0:00:10.7]} 43... Bxh5 {[%clk 0:00:03.7]} 44. e6 {[%clk 0:00:11.2]} 44... f6
{[%clk 0:00:03]} 45. Nd7 {[%clk 0:00:10.7]} 45... Rxd7 {[%clk 0:00:02.6]} 46.
exd7 {[%clk 0:00:11.6]} 46... Rxd7 {[%clk 0:00:03.2]} 47. Bd4 {[%clk 0:00:11.5]}
47... Bd8 {[%clk 0:00:03]} 48. Kg1 {[%clk 0:00:10.9]} 48... Qf7 {[%clk
0:00:02.5]} 49. b4 {[%clk 0:00:11.3]} 49... Ra7 {[%clk 0:00:01.7]} 50. Qc2
{[%clk 0:00:10]} 50... Bg6 {[%clk 0:00:01.2]} 51. Qd1 {[%clk 0:00:10.5]} 51...
Qe6 {[%clk 0:00:01.2]} 52. Re3 {[%clk 0:00:10.2]} 52... Qg4 {[%clk 0:00:01.1]}
53. Qxg4 {[%clk 0:00:09.1]} 1-0

[Event "Late-Titled-Tuesday-Blitz-February-13-2024"]
[Site "Chess.com"]
[Date "2024.02.13"]
[Round "5"]
[White "gunslinger222"]
[Black "cande_francisco"]
[Result "0-1"]
[WhiteElo "2257"]
[BlackElo "2483"]
[TimeControl "180+1"]
[EndTime "14:56:42 PST"]
[Termination "cande_francisco won on time"]

1. d4 {[%clk 0:03:00.1]} 1... Nf6 {[%clk 0:03:00.1]} 2. Bg5 {[%clk 0:03:00.6]}
2... e6 {[%clk 0:02:56.4]} 3. e3 {[%clk 0:02:59.1]} 3... h6 {[%clk 0:02:55]} 4.
Bxf6 {[%clk 0:02:58.6]} 4... Qxf6 {[%clk 0:02:55.9]} 5. Nf3 {[%clk 0:02:58.2]}
5... c5 {[%clk 0:02:56]} 6. c3 {[%clk 0:02:58]} 6... Nc6 {[%clk 0:02:52.9]} 7.
Nbd2 {[%clk 0:02:53]} 7... cxd4 {[%clk 0:02:50.4]} 8. exd4 {[%clk 0:02:51.6]}
8... d5 {[%clk 0:02:48]} 9. Bd3 {[%clk 0:02:49.1]} 9... Bd6 {[%clk 0:02:47.4]}
10. O-O {[%clk 0:02:49.3]} 10... O-O {[%clk 0:02:47.3]} 11. Re1 {[%clk
0:02:49.8]} 11... Bd7 {[%clk 0:02:43.2]} 12. Qe2 {[%clk 0:02:49.8]} 12... a6
{[%clk 0:02:35.3]} 13. Ne5 {[%clk 0:02:49.9]} 13... Rfd8 {[%clk 0:02:14.8]} 14.
Ndf3 {[%clk 0:02:46.4]} 14... Be8 {[%clk 0:02:13.9]} 15. g3 {[%clk 0:02:38.2]}
15... b5 {[%clk 0:02:12.2]} 16. a4 {[%clk 0:02:33.1]} 16... b4 {[%clk
0:01:59.2]} 17. Bxa6 {[%clk 0:01:53.7]} 17... Ne7 {[%clk 0:01:53.3]} 18. Bb5
{[%clk 0:01:47.1]} 18... Bxb5 {[%clk 0:01:46.7]} 19. axb5 {[%clk 0:01:46]} 19...
bxc3 {[%clk 0:01:42]} 20. bxc3 {[%clk 0:01:44.3]} 20... Rab8 {[%clk 0:01:39.7]}
21. Reb1 {[%clk 0:01:32.6]} 21... Rb7 {[%clk 0:01:35.8]} 22. Nc6 {[%clk
0:01:12.8]} 22... Rc8 {[%clk 0:01:22.3]} 23. Nfe5 {[%clk 0:01:05.6]} 23... Bxe5
{[%clk 0:01:02.9]} 24. dxe5 {[%clk 0:01:03.1]} 24... Qg6 {[%clk 0:00:58.2]} 25.
Nxe7+ {[%clk 0:00:59.1]} 25... Rxe7 {[%clk 0:00:59.1]} 26. b6 {[%clk 0:00:58.6]}
26... Rb8 {[%clk 0:00:55.7]} 27. Rb4 {[%clk 0:00:50.8]} 27... Reb7 {[%clk
0:00:53.5]} 28. Rab1 {[%clk 0:00:41.1]} 28... Qg5 {[%clk 0:00:53]} 29. f4 {[%clk
0:00:39.9]} 29... Qe7 {[%clk 0:00:52.9]} 30. Qe3 {[%clk 0:00:36.4]} 30... Qe8
{[%clk 0:00:50.7]} 31. Qc5 {[%clk 0:00:35.1]} 31... Rc8 {[%clk 0:00:50.1]} 32.
Qd4 {[%clk 0:00:33.6]} 32... Qc6 {[%clk 0:00:48.9]} 33. R1b3 {[%clk 0:00:29.5]}
33... Ra8 {[%clk 0:00:48.3]} 34. Kf2 {[%clk 0:00:26.6]} 34... Ra2+ {[%clk
0:00:41.9]} 35. Rb2 {[%clk 0:00:25.8]} 35... Ra3 {[%clk 0:00:41.9]} 36. R4b3
{[%clk 0:00:23.2]} 36... Ra5 {[%clk 0:00:40.2]} 37. h4 {[%clk 0:00:21.9]} 37...
Rc5 {[%clk 0:00:39]} 38. Ke3 {[%clk 0:00:19.4]} 38... Rc4 {[%clk 0:00:39.3]} 39.
Qd3 {[%clk 0:00:18]} 39... Qc5+ {[%clk 0:00:34.5]} 40. Kf3 {[%clk 0:00:17.8]}
40... Qg1 {[%clk 0:00:30.3]} 41. Ra2 {[%clk 0:00:14.8]} 41... g6 {[%clk
0:00:24]} 42. Rf2 {[%clk 0:00:10.8]} 42... Qh1+ {[%clk 0:00:21.4]} 43. Rg2
{[%clk 0:00:11.2]} 43... h5 {[%clk 0:00:19.3]} 44. Kf2 {[%clk 0:00:09.2]} 44...
Qc1 {[%clk 0:00:18.5]} 45. Kf3 {[%clk 0:00:08.6]} 45... Rxb6 {[%clk 0:00:14.2]}
46. Rxb6 {[%clk 0:00:08.3]} 46... Rxc3 {[%clk 0:00:14.6]} 47. Rb8+ {[%clk
0:00:07]} 47... Kg7 {[%clk 0:00:15.1]} 48. Qxc3 {[%clk 0:00:06.4]} 48... Qxc3+
{[%clk 0:00:16]} 49. Kf2 {[%clk 0:00:05.4]} 49... Qd4+ {[%clk 0:00:15.4]} 50.
Kf1 {[%clk 0:00:04.9]} 50... Qd1+ {[%clk 0:00:15.7]} 51. Kf2 {[%clk 0:00:05]}
51... d4 {[%clk 0:00:15.9]} 52. Rd8 {[%clk 0:00:02.5]} 52... Qd2+ {[%clk
0:00:11.5]} 53. Kg1 {[%clk 0:00:02.5]} 53... Qe3+ {[%clk 0:00:11.7]} 54. Kh2
{[%clk 0:00:02.6]} 54... d3 {[%clk 0:00:10.4]} 55. Rd6 {[%clk 0:00:02.6]} 55...
Kf8 {[%clk 0:00:09.9]} 0-1

[Event "Late-Titled-Tuesday-Blitz-February-13-2024"]
[Site "Chess.com"]
[Date "2024.02.13"]
[Round "5"]
[White "colegiodemadrid"]
[Black "laskakid"]
[Result "0-1"]
[WhiteElo "2554"]
[BlackElo "2417"]
[TimeControl "180+1"]
[EndTime "14:56:45 PST"]
[Termination "laskakid won by resignation"]

1. Nf3 {[%clk 0:03:00.9]} 1... Nf6 {[%clk 0:02:59.7]} 2. d4 {[%clk 0:03:00.2]}
2... d5 {[%clk 0:02:58.7]} 3. c4 {[%clk 0:03:00.6]} 3... c6 {[%clk 0:02:58.7]}
4. Nc3 {[%clk 0:03:00.2]} 4... dxc4 {[%clk 0:02:58.5]} 5. e3 {[%clk 0:03:00.1]}
5... Bf5 {[%clk 0:02:57.4]} 6. Bxc4 {[%clk 0:02:59.2]} 6... e6 {[%clk
0:02:57.4]} 7. Qb3 {[%clk 0:02:56]} 7... Qb6 {[%clk 0:02:45.2]} 8. h3 {[%clk
0:02:54.9]} 8... Nbd7 {[%clk 0:02:41.5]} 9. Bd2 {[%clk 0:02:54.5]} 9... Be7
{[%clk 0:02:36]} 10. O-O {[%clk 0:02:53.8]} 10... O-O {[%clk 0:02:36.1]} 11.
Rfe1 {[%clk 0:02:50.3]} 11... Bg6 {[%clk 0:02:30.9]} 12. e4 {[%clk 0:02:39.3]}
12... Qxb3 {[%clk 0:02:12.7]} 13. Bxb3 {[%clk 0:02:36.9]} 13... Nb6 {[%clk
0:02:02.5]} 14. a4 {[%clk 0:02:33.4]} 14... a5 {[%clk 0:01:59.7]} 15. Ne5 {[%clk
0:02:20.7]} 15... Bb4 {[%clk 0:01:54.5]} 16. Nxg6 {[%clk 0:02:19.6]} 16... hxg6
{[%clk 0:01:55]} 17. f3 {[%clk 0:02:18.4]} 17... Rfd8 {[%clk 0:01:47.1]} 18. Be3
{[%clk 0:02:18.5]} 18... Rac8 {[%clk 0:01:46.9]} 19. Red1 {[%clk 0:02:14.8]}
19... Na8 {[%clk 0:01:26.2]} 20. g4 {[%clk 0:02:01.6]} 20... Nc7 {[%clk
0:01:24.1]} 21. Kg2 {[%clk 0:01:59.7]} 21... Na6 {[%clk 0:01:19.6]} 22. Bc4
{[%clk 0:01:57.9]} 22... Nc7 {[%clk 0:01:14]} 23. h4 {[%clk 0:01:51.4]} 23...
Kf8 {[%clk 0:01:13]} 24. Rh1 {[%clk 0:01:46.2]} 24... Ke7 {[%clk 0:01:12.5]} 25.
Rad1 {[%clk 0:01:44.6]} 25... Rh8 {[%clk 0:01:10.4]} 26. Bg5 {[%clk 0:01:41.6]}
26... Ke8 {[%clk 0:01:05.2]} 27. Kg3 {[%clk 0:01:28.2]} 27... Nh7 {[%clk
0:01:01.8]} 28. Bf4 {[%clk 0:01:19.8]} 28... Nf6 {[%clk 0:01:01.4]} 29. Be5
{[%clk 0:01:18.6]} 29... Kf8 {[%clk 0:00:57.3]} 30. Rh2 {[%clk 0:01:06.5]} 30...
Nd7 {[%clk 0:00:56.6]} 31. Bf4 {[%clk 0:01:03.3]} 31... Nf6 {[%clk 0:00:56.5]}
32. Kf2 {[%clk 0:00:49.9]} 32... Ke7 {[%clk 0:00:52]} 33. Bg5 {[%clk 0:00:49.1]}
33... Kf8 {[%clk 0:00:50.7]} 34. Ke3 {[%clk 0:00:48.2]} 34... Nh7 {[%clk
0:00:49.8]} 35. Bf4 {[%clk 0:00:46.8]} 35... Nf6 {[%clk 0:00:49.9]} 36. Na2
{[%clk 0:00:44.8]} 36... Be7 {[%clk 0:00:46.2]} 37. Nc1 {[%clk 0:00:44.7]} 37...
b5 {[%clk 0:00:42.2]} 38. Bb3 {[%clk 0:00:42.7]} 38... Na6 {[%clk 0:00:38.1]}
39. Nd3 {[%clk 0:00:37.4]} 39... Nb4 {[%clk 0:00:36.8]} 40. Nxb4 {[%clk
0:00:37]} 40... Bxb4 {[%clk 0:00:36.9]} 41. Rc1 {[%clk 0:00:34.4]} 41... Ke7
{[%clk 0:00:35.4]} 42. Bg5 {[%clk 0:00:32.1]} 42... Kd7 {[%clk 0:00:33.3]} 43.
Rhc2 {[%clk 0:00:28.3]} 43... Be7 {[%clk 0:00:25.1]} 44. f4 {[%clk 0:00:18.3]}
44... Nxg4+ {[%clk 0:00:23.3]} 45. Kf3 {[%clk 0:00:17.6]} 45... Bxg5 {[%clk
0:00:21.5]} 46. hxg5 {[%clk 0:00:16.8]} 46... f5 {[%clk 0:00:19.6]} 47. gxf6
{[%clk 0:00:13.4]} 47... Nxf6 {[%clk 0:00:19.8]} 48. Rg2 {[%clk 0:00:13.2]}
48... Rh3+ {[%clk 0:00:19.1]} 49. Rg3 {[%clk 0:00:13.9]} 49... Rxg3+ {[%clk
0:00:18.8]} 50. Kxg3 {[%clk 0:00:14.8]} 50... Nxe4+ {[%clk 0:00:18.8]} 51. Kg2
{[%clk 0:00:14.3]} 51... Nd2 {[%clk 0:00:17.8]} 52. Bc2 {[%clk 0:00:14.3]} 52...
Nc4 {[%clk 0:00:15.1]} 53. Bxg6 {[%clk 0:00:13.6]} 53... Nxb2 {[%clk 0:00:15.4]}
54. f5 {[%clk 0:00:13.8]} 54... Nxa4 {[%clk 0:00:14.3]} 55. fxe6+ {[%clk
0:00:13.9]} 55... Kxe6 {[%clk 0:00:14.7]} 56. Re1+ {[%clk 0:00:14.1]} 56... Kd6
{[%clk 0:00:14.7]} 57. Bf5 {[%clk 0:00:13.8]} 57... Rf8 {[%clk 0:00:13.5]} 58.
Re6+ {[%clk 0:00:13.5]} 58... Kd5 {[%clk 0:00:13.3]} 59. Bg4 {[%clk 0:00:13.3]}
59... Rf4 {[%clk 0:00:11.7]} 60. Kg3 {[%clk 0:00:11.9]} 60... Rxg4+ {[%clk
0:00:11.1]} 61. Kxg4 {[%clk 0:00:11.1]} 61... Kxe6 {[%clk 0:00:11.7]} 62. Kg5
{[%clk 0:00:11.8]} 62... Nc3 {[%clk 0:00:12.1]} 0-1